bitfinex-derivatives/quotes_BNBF0:USTF0_20251027
["timestamp","ask_amount","ask_price","bid_price","bid_amount"]
[1761564709723,0.15050438,1157.8,1154.2,0.54741859]
[1761564709923,0.15050438,1157.8,1154.1,1.016]
[1761564710120,0.15050438,1157.8,1154.2,0.54744765]
[1761564710320,0.15050438,1157.8,1154.1,1.016]
[1761564710517,0.15050438,1157.8,1154.2,0.54737006]
[1761564710725,0.15050438,1157.8,1154.1,1.016]
[1761564710922,0.15050438,1157.8,1154.2,0.54736148]
[1761564711122,0.15050438,1157.8,1154.1,1.016]
[1761564711323,0.15050438,1157.8,1154.2,0.54730137]
[1761564711627,0.15050438,1157.8,1154.1,1.016]
[1761564711929,0.15050438,1157.8,1154.2,0.54730768]
[1761564712224,0.15050438,1157.8,1154.1,1.016]
[1761564712424,0.15050438,1157.8,1154.2,0.54725735]
[1761564712628,0.15050438,1157.8,1154.1,1.016]
[1761564712829,0.15050438,1157.8,1154.2,0.54725133]
[1761564713128,0.15050438,1157.8,1154.1,1.016]
[1761564713325,0.15050438,1157.8,1154.2,0.5471995]
[1761564713524,0.15050438,1157.8,1154.1,1.016]
[1761564713724,0.15050438,1157.8,1154.2,0.54722421]
[1761564714027,0.15050438,1157.8,1154.1,1.016]
[1761564714224,0.15050438,1157.8,1154.2,0.54722421]
[1761564714427,0.15050438,1157.8,1154.1,1.016]
[1761564714626,0.15050438,1157.8,1154.2,0.54719482]
[1761564714932,0.15050438,1157.8,1154.1,1.016]
[1761564715126,0.15050438,1157.8,1154.2,0.54721554]
[1761564715328,0.15050438,1157.8,1154.1,1.016]
[1761564715526,0.15050438,1157.8,1154.2,0.54719693]
[1761564715729,0.15050438,1157.8,1154.1,1.016]
[1761564715930,0.15050438,1157.8,1154.2,0.54722632]
[1761564716129,0.15050438,1157.8,1154.1,1.016]
[1761564716728,2.1456881,1157.6,1154.1,1.016]
[1761564718629,2.1456881,1157.5,1154.1,1.016]
[1761564719629,2.1456881,1157.6,1154.1,1.016]
[1761564720730,2.1456881,1157.4,1154.1,1.016]
[1761564721835,2.1456881,1157.3,1154.1,1.016]
[1761564722032,2.1456881,1156.8,1154.2,0.54738839]
[1761564722236,2.1456881,1156.8,1154.1,1.016]
[1761564722436,2.1456881,1156.8,1154.2,0.54752154]
[1761564722735,2.1456881,1156.8,1154.3,0.54741978]
[1761564722933,2.1456881,1156.8,1154.1,1.016]
[1761564723137,2.1456881,1156.8,1154.2,0.54741958]
[1761564723436,2.1456881,1156.8,1154.3,0.54741958]
[1761564723733,2.1456881,1156.7,1154.1,1.016]
[1761564723933,2.1456881,1156.7,1154.2,0.54760483]
[1761564724138,2.1456881,1156.7,1154.3,0.54760483]
[1761564724434,2.1456881,1156.7,1154.1,1.016]
[1761564724638,2.1456881,1156.7,1154.2,0.54780593]
[1761564724838,2.1456881,1156.7,1154.3,0.54780593]
[1761564725138,4.2977337,1157.7,1154.4,0.54780593]
[1761564725333,4.2977337,1157.7,1154.1,1.016]
[1761564725537,4.2977337,1157.7,1154.2,0.54795953]
[1761564725735,4.2977337,1157.7,1154.3,0.54795953]
[1761564725934,4.2977337,1157.7,1154.4,0.54795953]
[1761564726134,0.15050438,1157.8,1154.5,0.54795953]
[1761564726339,0.15050438,1157.8,1154.1,1.016]
[1761564726536,0.15050438,1157.8,1154.2,0.54800373]
[1761564726736,0.15050438,1157.8,1154.3,0.54800373]
[1761564727039,2.1456881,1157.2,1154.4,0.54800373]
[1761564727235,2.1456881,1157.2,1154.5,0.54800373]
[1761564727433,2.1456881,1157.2,1154.1,1.65561372]
[1761564727639,2.1456881,1157.2,1154.2,1.18761328]
[1761564727838,2.1456881,1157.2,1154.3,0.54799956]
[1761564728038,2.1456881,1157.2,1154.4,0.54799956]
[1761564728239,2.1456881,1157.2,1154.5,0.54799956]
[1761564728438,2.1456881,1157.2,1154.6,0.54799956]
[1761564728640,2.1456881,1157.2,1154.2,0.63961372]
[1761564728939,2.1456881,1157.2,1154.3,0.54809219]
[1761564729141,2.1456881,1157.2,1154.4,0.54809219]
[1761564729339,2.1456881,1157.2,1154.5,0.54809219]
[1761564729638,2.1456881,1157.2,1154.6,0.54809219]
[1761564729839,2.1456881,1157.2,1154.2,0.63961372]
[1761564730038,2.1456881,1157.2,1154.3,0.54818585]
[1761564730240,2.1456881,1157.2,1154.4,0.54818585]
[1761564730439,2.1456881,1157.2,1154.5,0.54818585]
[1761564730640,2.1456881,1157.2,1154.6,0.54818585]
[1761564730841,2.1456881,1157.2,1154.2,0.63961372]
[1761564731041,2.1456881,1157.2,1154.3,0.54846741]
[1761564731339,2.1456881,1157.2,1154.4,0.54846741]
[1761564731639,2.1456881,1157.2,1154.5,0.54846741]
[1761564731939,2.1456881,1157.2,1154.6,0.54846741]
[1761564732138,2.1456881,1157.3,1154.7,0.54846741]
[1761564732336,2.1456881,1157.3,1154.8,0.54846741]
[1761564732535,2.1456881,1157.2,1154.4,0.63961372]
[1761564732735,2.1456881,1157.2,1154.5,0.54858851]
[1761564732940,2.1456881,1157.2,1154.6,0.54858851]
[1761564733137,2.1456881,1157.3,1154.7,0.54858851]
[1761564733335,2.1456881,1157.3,1154.8,0.54858851]
[1761564733539,3.0039634,1157.7,1154.3,0.63961372]
[1761564733540,2.1456881,1157.4,1154.3,0.63961372]
[1761564733738,2.1456881,1157.4,1154.4,0.54864797]
[1761564733940,2.1456881,1157.4,1154.5,0.54864797]
[1761564734141,2.1456881,1157.5,1154.6,0.54864797]
[1761564734340,2.1456881,1157.5,1154.7,0.54864797]
[1761564734640,2.1456881,1157.4,1154.8,0.54864797]
[1761564734841,2.1456881,1157.4,1154.3,0.63961372]
[1761564735037,2.1456881,1157.4,1154.4,1.18828675]
[1761564735243,2.1456881,1156.9,1154.5,0.54867303]
[1761564735441,2.1456881,1156.9,1154.6,0.54867303]
[1761564735641,3.0039634,1157.2,1154.1,1.016]
[1761564735841,3.0039634,1157.2,1154.2,0.54910291]
[1761564736037,3.0039634,1157.2,1154.3,0.54910291]
[1761564736341,3.0039634,1157.2,1154.4,0.54910291]
[1761564736638,2.1456881,1157.3,1154.5,0.54910291]
[1761564736844,0.15050438,1157.8,1154.6,0.54910291]
[1761564736845,2.1456881,1157.6,1154.6,0.54910291]
[1761564737140,2.1456881,1157.6,1154.7,0.54910291]
[1761564737337,2.1456881,1157.6,1154.8,0.54910291]
[1761564737541,2.1456881,1157.6,1154.3,0.63961372]
[1761564737741,2.1456881,1157.6,1154.4,0.54856625]
[1761564737944,2.1456881,1157.5,1154.5,0.54856625]
[1761564738242,2.1456881,1157.5,1154.6,0.54856625]
[1761564738443,2.1456881,1157.5,1154.7,0.54856625]
[1761564738645,2.1456881,1157.5,1154.8,0.54856625]
[1761564738944,2.1456881,1157.5,1154.3,0.63961372]
[1761564739140,2.1456881,1157.5,1154.4,0.54853069]
[1761564739343,2.1456881,1157.6,1154.5,0.54853069]
[1761564739541,2.1456881,1157.6,1154.6,0.54853069]
[1761564739741,2.1456881,1157.6,1154.7,0.54853069]
[1761564739943,2.1456881,1157.6,1154.8,0.54853069]
[1761564740140,2.1456881,1157.6,1154.3,0.63961372]
[1761564740342,2.1456881,1157.6,1154.4,0.54847234]
[1761564740543,2.1456881,1157.3,1154.5,0.54847234]
[1761564740843,2.1456881,1157.3,1154.6,0.54847234]
[1761564741143,2.1456881,1157.1,1154.7,0.54847234]
[1761564741344,2.1456881,1157.1,1154.3,0.63961372]
[1761564741545,2.1456881,1157.1,1154.4,0.54841916]
[1761564741845,2.1456881,1157.0,1154.5,1.18803288]
[1761564742045,2.1456881,1157.0,1154.6,0.54841916]
[1761564742246,2.1456881,1157.0,1154.7,0.54841916]
[1761564742441,2.1456881,1157.0,1154.8,0.54841916]
[1761564742641,2.1456881,1157.0,1154.5,0.63961372]
[1761564742844,2.1456881,1157.0,1154.6,0.54840241]
[1761564743041,2.1456881,1157.0,1154.7,0.54840241]
[1761564743245,2.1456881,1157.0,1154.8,0.54840241]
[1761564743445,2.1456881,1157.4,1154.9,0.54840241]
[1761564743645,2.1456881,1157.4,1154.5,0.63961372]
[1761564743846,2.1456881,1157.4,1154.6,0.54811633]
[1761564744046,2.1456881,1157.4,1154.5,0.63961372]
[1761564744047,2.1456881,1157.4,1154.7,0.54811633]
[1761564744248,2.1456881,1157.4,1154.8,0.54811633]
[1761564744442,2.1456881,1157.5,1154.9,0.54811633]
[1761564744646,2.1456881,1157.5,1154.5,0.63961372]
[1761564744948,2.1456881,1157.5,1154.6,0.54804544]
[1761564745147,2.1456881,1157.5,1154.7,0.54804544]
[1761564745446,2.1456881,1157.5,1154.8,0.54804544]
[1761564745643,2.1456881,1157.5,1154.9,0.54804544]
[1761564745842,2.1456881,1157.5,1154.5,0.63961372]
[1761564746050,2.1456881,1157.5,1154.6,0.54787691]
[1761564746247,2.1456881,1157.5,1154.7,0.54787691]
[1761564746450,2.1456881,1157.5,1154.8,0.54787691]
[1761564746746,2.1456881,1157.5,1154.5,0.63961372]
[1761564746747,2.1456881,1157.7,1154.9,0.54787691]
[1761564746948,2.1456881,1157.7,1154.5,0.63961372]
[1761564747146,2.1456881,1157.7,1154.6,1.18736051]
[1761564747349,2.1456881,1157.7,1154.7,0.54774679]
[1761564747547,2.1456881,1157.6,1154.8,0.54774679]
[1761564747847,2.1456881,1157.6,1154.9,0.54774679]
[1761564748051,0.15050438,1157.8,1155.0,0.54774679]
[1761564748246,0.15050438,1157.8,1155.1,0.54774679]
[1761564748448,0.15050438,1157.8,1155.2,0.54774679]
[1761564748646,0.15050438,1157.8,1154.7,0.63961372]
[1761564748845,0.15050438,1157.8,1154.8,0.54726375]
[1761564749150,2.1456881,1158.0,1154.9,0.54726375]
[1761564749349,2.1456881,1158.0,1155.0,0.54726375]
[1761564749646,0.15050048,1158.0,1155.1,0.54726375]
[1761564749943,0.15050048,1158.0,1155.2,0.54726375]
[1761564750146,0.15050048,1158.0,1155.3,0.54726375]
[1761564750350,0.15050048,1158.0,1154.8,0.63961372]
[1761564750546,0.15050048,1158.0,1154.9,0.54689508]
[1761564750745,0.15050048,1158.0,1155.0,0.54689508]
[1761564751049,0.15050048,1158.0,1155.1,0.54689508]
[1761564751349,0.15050048,1158.0,1155.2,0.54689508]
[1761564751652,0.15050048,1158.0,1155.3,0.54689508]
[1761564751947,2.1456881,1157.9,1155.0,0.63961372]
[1761564752152,2.1456881,1158.0,1155.2,0.63961372]
[1761564752347,2.1456881,1158.0,1155.3,0.54635963]
[1761564752651,2.1456881,1158.1,1155.4,0.54635963]
[1761564752847,2.1456881,1158.1,1155.1,0.63961372]
[1761564752848,2.1456881,1158.1,1155.5,0.54635963]
[1761564753048,2.1456881,1158.1,1155.1,0.63961372]
[1761564753247,0.15047835,1158.3,1155.2,0.5456855]
[1761564753447,0.15047835,1158.3,1155.3,0.5456855]
[1761564753747,0.15047835,1158.3,1155.4,0.5456855]
[1761564753947,0.15047835,1158.3,1155.5,0.5456855]
[1761564754147,0.15047835,1158.3,1155.1,0.63961372]
[1761564754348,0.15047835,1158.3,1155.2,0.54527045]
[1761564754548,0.15047835,1158.3,1155.3,0.54527045]
[1761564754746,0.15047835,1158.3,1155.4,0.54527045]
[1761564754946,0.15047835,1158.3,1155.5,0.54527045]
[1761564755151,0.15047835,1158.3,1155.1,0.63961372]
[1761564755348,0.15047835,1158.3,1155.2,0.54490559]
[1761564755650,0.15047835,1158.3,1155.3,0.54490559]
[1761564755851,0.15047835,1158.3,1155.4,0.54490559]
[1761564756051,0.15047835,1158.3,1155.5,0.54490559]
[1761564756252,2.1456881,1159.8,1155.6,0.54490559]
[1761564756449,2.1456881,1160.0,1155.7,0.54490559]
[1761564756649,0.15039576,1158.6,1155.8,0.54490559]
[1761564756849,2.1456881,1159.9,1155.2,0.63961372]
[1761564757051,2.1456881,1159.9,1155.3,0.54407687]
[1761564757248,0.15036327,1158.6,1155.4,0.54407687]
[1761564757454,0.15036327,1158.6,1155.5,0.54407687]
[1761564757650,2.1456881,1159.6,1155.6,0.54407687]
[1761564757849,0.15037691,1158.6,1155.7,0.54407687]
[1761564758051,0.15037691,1158.6,1155.8,0.54407687]
[1761564758355,0.15037691,1158.6,1155.2,0.63961372]
[1761564758551,0.15037691,1158.6,1155.3,0.54325992]
[1761564758756,0.15037691,1158.6,1155.4,0.54325992]
[1761564758952,0.15037691,1158.6,1155.5,0.54325992]
[1761564759154,0.15037691,1158.6,1155.6,0.54325992]
[1761564759356,0.15037691,1158.6,1155.2,0.63961372]
[1761564759357,0.15037691,1158.6,1155.7,0.54325992]
[1761564759555,0.15037691,1158.6,1155.8,0.54325992]
[1761564759857,0.15037691,1158.6,1155.2,0.63961372]
[1761564760057,0.15037691,1158.6,1155.3,0.54296109]
[1761564760258,0.15037691,1158.6,1155.4,0.54296109]
[1761564760557,0.15037691,1158.6,1155.5,0.54296109]
[1761564760758,0.15037691,1158.6,1155.6,0.54296109]
[1761564760958,0.15037691,1158.6,1155.7,0.54296109]
[1761564761159,0.15037691,1158.6,1155.2,0.63961372]
[1761564761359,0.15037691,1158.6,1155.3,0.54302315]
[1761564761557,0.15037691,1158.6,1155.4,0.54302315]
[1761564761760,0.15037691,1158.6,1155.5,0.54302315]
[1761564762055,0.15037691,1158.6,1155.6,0.54302315]
[1761564762258,0.15037691,1158.6,1155.7,0.54302315]
[1761564762459,0.15037691,1158.6,1155.1,0.63961372]
[1761564762660,0.15037691,1158.6,1155.2,0.54259177]
[1761564762857,0.15037691,1158.6,1155.3,0.54259177]
[1761564763157,0.15037691,1158.6,1155.4,0.54259177]
[1761564763361,0.15037691,1158.6,1155.5,0.54259177]
[1761564763559,0.15037691,1158.6,1155.6,0.54259177]
[1761564763858,0.15037691,1158.6,1155.7,0.54259177]
[1761564764062,0.15037691,1158.6,1155.8,0.54259177]
[1761564764358,0.15037691,1158.6,1155.1,0.63961372]
[1761564764658,0.15037691,1158.6,1155.2,0.5421889]
[1761564765062,0.15037691,1158.6,1155.3,0.5421889]
[1761564765257,0.15037691,1158.6,1155.4,0.5421889]
[1761564765559,0.15037691,1158.6,1155.5,0.5421889]
[1761564765758,0.15037691,1158.6,1155.0,0.63961372]
[1761564765961,0.15037691,1158.6,1155.1,0.54232662]
[1761564766161,0.15037691,1158.6,1155.2,0.54232662]
[1761564766457,0.15037691,1158.6,1155.3,0.54232662]
[1761564766763,0.15037691,1158.6,1155.4,0.54232662]
[1761564766958,0.15037691,1158.6,1154.9,0.63961372]
[1761564767157,0.15037691,1158.6,1155.0,0.54256383]
[1761564767358,0.15037691,1158.6,1155.1,0.54256383]
[1761564767563,0.15037691,1158.6,1155.2,0.54256383]
[1761564767763,0.15037691,1158.6,1155.3,0.54256383]
[1761564767963,0.15037691,1158.6,1155.4,0.54256383]
[1761564768264,0.15037691,1158.6,1155.1,0.63961372]
[1761564768559,0.15037691,1158.6,1155.2,0.542598]
[1761564768758,0.15037691,1158.6,1155.3,0.542598]
[1761564768959,0.15037691,1158.6,1155.4,0.542598]
[1761564769163,0.15037691,1158.6,1155.4,0.826]
[1761564770165,0.15037691,1158.6,1155.5,0.54262325]
[1761564770360,0.15037691,1158.6,1155.4,0.826]
[1761564770562,0.15037691,1158.6,1155.5,0.54258205]
[1761564770764,0.15037691,1158.6,1155.6,0.54258205]
[1761564770965,0.15037691,1158.6,1155.4,0.826]
[1761564771161,0.15037691,1158.6,1155.5,0.54253857]
[1761564771463,0.15037691,1158.6,1155.6,0.54253857]
[1761564771665,0.15037691,1158.6,1155.4,0.826]
[1761564771865,0.15037691,1158.6,1155.5,0.54261125]
[1761564772065,0.15037691,1158.6,1155.6,0.54261125]
[1761564772365,0.15037691,1158.6,1155.4,0.826]
[1761564772564,0.15037691,1158.6,1155.5,0.54267673]
[1761564772762,0.15037691,1158.6,1155.6,0.54267673]
[1761564772960,0.15037691,1158.6,1155.4,0.826]
[1761564773261,0.15037691,1158.6,1155.5,0.54267542]
[1761564773461,0.15037691,1158.6,1155.6,0.54267542]
[1761564773765,0.15037691,1158.6,1155.4,0.826]
[1761564773963,0.15037691,1158.6,1155.5,0.5427876]
[1761564774168,2.1456881,1159.2,1155.6,0.5427876]
[1761564774366,2.1456881,1160.3,1155.7,0.5427876]
[1761564774563,0.15037886,1159.1,1155.8,0.5427876]
[1761564774767,0.15037886,1159.1,1155.9,0.5427876]
[1761564774964,0.15037886,1159.1,1156.0,0.5427876]
[1761564775264,0.15037886,1159.1,1156.1,0.5427876]
[1761564775466,0.15037886,1159.1,1156.2,0.5427876]
[1761564775663,0.15037886,1159.1,1155.5,0.63961372]
[1761564775967,0.15037886,1159.1,1155.6,1.18159564]
[1761564776165,0.15037886,1159.1,1155.7,0.54198192]
[1761564776368,0.15037886,1159.1,1155.8,0.54198192]
[1761564776564,0.15037886,1159.1,1155.9,0.54198192]
[1761564776764,0.15037886,1159.1,1156.0,0.54198192]
[1761564776965,0.15037886,1159.1,1156.1,0.54198192]
[1761564777169,0.15037886,1159.1,1156.2,0.54198192]
[1761564777369,0.15037886,1159.1,1155.6,0.63961372]
[1761564777565,0.15037886,1159.1,1155.7,0.54195107]
[1761564777768,0.15037886,1159.1,1155.8,0.54195107]
[1761564777969,0.15037886,1159.1,1155.9,0.54195107]
[1761564778169,0.15037886,1159.1,1156.0,0.54195107]
[1761564778365,0.15037886,1159.1,1156.1,0.54195107]
[1761564778569,0.15037886,1159.1,1155.5,0.63961372]
[1761564778770,0.15037886,1159.1,1155.6,0.54201543]
[1761564778970,0.15037886,1159.1,1155.7,0.54201543]
[1761564779171,0.15037886,1159.1,1155.8,0.54201543]
[1761564779368,0.15037886,1159.1,1155.9,0.54201543]
[1761564779670,0.15037886,1159.1,1156.0,0.54201543]
[1761564779964,0.15037886,1159.1,1156.1,0.54201543]
[1761564780166,0.15037886,1159.1,1155.6,0.63961372]
[1761564780466,0.15037886,1159.1,1155.7,0.54210816]
[1761564780764,0.15037886,1159.1,1155.8,0.54210816]
[1761564780965,0.15037886,1159.1,1155.5,0.63961372]
[1761564781169,0.15037886,1159.1,1155.6,0.54243694]
[1761564781369,0.15037886,1159.1,1155.7,0.54243694]
[1761564781570,0.15037886,1159.1,1155.8,0.54243694]
[1761564781770,0.15037886,1159.1,1155.5,0.63961372]
[1761564781970,0.15037886,1159.1,1155.6,0.54272365]
[1761564782165,0.15037886,1159.1,1155.7,0.54272365]
[1761564782470,0.15037886,1159.1,1155.4,0.826]
[1761564782670,2.29606696,1159.1,1155.5,0.54331303]
[1761564782870,2.29606696,1159.1,1155.4,0.826]
[1761564783071,2.29606696,1159.1,1155.5,0.54331303]
[1761564783267,2.29606696,1159.1,1155.6,0.54345194]
[1761564783466,2.29606696,1159.1,1155.4,0.826]
[1761564783670,2.29606696,1159.1,1155.5,0.54345132]
[1761564783970,2.29606696,1159.1,1155.4,0.826]
[1761564784171,2.29606696,1159.1,1155.5,0.54348463]
[1761564784470,2.29606696,1159.1,1155.4,0.826]
[1761564784672,2.29606696,1159.1,1155.5,0.5436494]
[1761564784872,2.29606696,1159.1,1155.4,0.826]
[1761564785068,2.29606696,1159.1,1155.5,0.5436494]
[1761564785272,2.29606696,1159.1,1155.4,0.826]
[1761564785471,2.29606696,1159.1,1155.5,0.54382734]
[1761564785774,2.29606696,1159.1,1155.4,0.826]
[1761564785968,2.29606696,1159.1,1155.5,0.54386761]
[1761564786168,2.1456881,1159.0,1155.4,0.826]
[1761564786671,2.1456881,1158.9,1155.4,0.826]
[1761564787372,2.1456881,1158.9,1155.5,0.54407511]
[1761564787567,2.1456881,1158.9,1155.4,0.826]
[1761564787871,0.15037886,1159.1,1155.4,0.826]
[1761564787872,2.29606696,1159.1,1155.4,0.826]
[1761564789370,2.1456881,1159.0,1155.4,0.826]
[1761564789874,2.29606696,1159.1,1155.4,0.826]
[1761564790975,0.15037886,1159.1,1155.4,0.826]
[1761564792575,2.29606696,1159.1,1155.4,0.826]
[1761564794076,0.15037886,1159.1,1155.4,0.826]
[1761564795181,2.1456881,1158.7,1155.4,0.826]
[1761564795585,2.1456881,1157.8,1155.4,0.826]
[1761564797183,2.1456881,1158.3,1155.4,0.826]
[1761564798789,5.1496515,1158.9,1155.4,0.826]
[1761564799091,0.15037886,1159.1,1155.4,0.826]
[1761564800093,2.1456881,1158.5,1155.4,0.826]
[1761564800489,2.1456881,1158.4,1155.4,0.826]
[1761564801890,2.1456881,1158.1,1155.4,0.826]
[1761564802490,2.1456881,1158.0,1155.4,0.826]
[1761564803989,2.1456881,1158.1,1155.4,0.826]
[1761564805691,2.1456881,1157.9,1155.4,0.826]
[1761564806696,2.1456881,1157.8,1155.4,0.826]
[1761564807092,2.1456881,1157.7,1155.4,0.826]
[1761564807595,2.1456881,1157.6,1155.4,0.826]
[1761564809396,2.1456881,1158.7,1155.5,0.55764257]
[1761564809695,2.1456881,1158.7,1155.6,0.55764257]
[1761564809992,2.1456881,1158.7,1155.4,0.826]
[1761564810194,2.1456881,1158.7,1155.5,0.55760881]
[1761564810393,2.1456881,1158.7,1155.6,0.55760881]
[1761564810593,2.1456881,1158.7,1155.4,0.826]
[1761564810797,2.1456881,1158.7,1155.5,0.55764628]
[1761564810993,2.1456881,1158.7,1155.6,0.55764628]
[1761564811198,2.1456881,1158.7,1155.4,0.826]
[1761564811398,2.1456881,1158.7,1155.5,0.55769312]
[1761564811596,2.1456881,1158.7,1155.6,0.55769312]
[1761564811799,2.1456881,1158.7,1155.4,0.826]
[1761564812000,2.1456881,1158.7,1155.5,0.55769481]
[1761564812198,2.1456881,1158.7,1155.6,0.55769481]
[1761564812396,2.1456881,1158.7,1155.4,0.826]
[1761564812601,2.1456881,1158.7,1155.5,0.5576949]
[1761564812800,2.1456881,1158.7,1155.6,0.5576949]
[1761564812996,2.1456881,1158.7,1155.4,0.826]
[1761564813198,2.1456881,1158.7,1155.5,0.55769549]
[1761564813401,2.1456881,1158.7,1155.6,0.55769549]
[1761564813600,2.1456881,1158.1,1155.4,0.826]
[1761564813799,2.1456881,1158.1,1155.5,0.55773726]
[1761564814000,2.1456881,1158.1,1155.6,0.55773726]
[1761564814201,2.1456881,1158.2,1155.4,0.826]
[1761564814397,2.1456881,1158.2,1155.5,0.55773802]
[1761564814600,2.1456881,1158.2,1155.6,0.55773802]
[1761564814901,2.1456881,1158.2,1155.4,0.826]
[1761564815099,2.1456881,1158.2,1155.5,0.55776288]
[1761564815303,2.1456881,1158.2,1155.6,0.55776288]
[1761564815500,2.1456881,1158.2,1155.4,0.826]
[1761564815702,2.1456881,1158.2,1155.5,0.55776398]
[1761564815899,2.1456881,1158.2,1155.6,0.55776398]
[1761564816099,2.1456881,1158.2,1155.4,0.826]
[1761564816299,2.1456881,1158.2,1155.5,0.55780345]
[1761564816503,2.1456881,1158.2,1155.6,0.55780345]
[1761564816799,2.1456881,1158.5,1155.4,0.826]
[1761564817000,2.1456881,1158.5,1155.5,0.55790045]
[1761564817199,2.1456881,1158.5,1155.6,0.55790045]
[1761564817400,2.1456881,1158.5,1155.4,0.826]
[1761564817604,2.1456881,1158.5,1155.5,0.55797634]
[1761564817802,2.1456881,1158.6,1155.6,0.55797634]
[1761564818000,2.1456881,1158.6,1155.7,0.55797634]
[1761564818200,2.1456881,1158.6,1155.4,0.826]
[1761564818403,2.1456881,1158.6,1155.5,0.55800525]
[1761564818704,2.1456881,1158.6,1155.6,0.55800525]
[1761564819003,2.1456881,1158.6,1155.7,0.55800525]
[1761564819204,2.1456881,1158.6,1155.4,0.826]
[1761564819406,2.1456881,1158.6,1155.5,0.55803652]
[1761564819601,2.1456881,1158.6,1155.6,0.55803652]
[1761564819901,2.1456881,1158.6,1155.7,0.55803652]
[1761564820204,2.1456881,1158.6,1155.4,0.826]
[1761564820405,3.15434226,1159.1,1155.5,0.55807419]
[1761564820602,3.15434226,1159.1,1155.6,0.55807419]
[1761564820802,3.15434226,1159.1,1155.7,0.55807419]
[1761564821106,0.15037886,1159.1,1155.4,0.826]
[1761564821406,2.1456881,1157.8,1155.4,0.826]
[1761564822206,2.1456881,1157.8,1155.1,0.63961372]
[1761564822506,2.1456881,1157.8,1155.2,0.55837897]
[1761564822709,2.1456881,1157.8,1155.3,0.55837897]
[1761564823006,2.1456881,1157.8,1155.4,0.55837897]
[1761564823207,2.1456881,1157.8,1155.1,0.63961372]
[1761564823507,2.1456881,1157.8,1155.2,0.55834337]
[1761564823803,2.1456881,1157.8,1155.3,0.55834337]
[1761564824006,2.1456881,1157.8,1155.4,0.55834337]
[1761564824207,2.1456881,1157.8,1155.1,0.63961372]
[1761564824408,2.1456881,1157.8,1155.2,0.5583532]
[1761564824605,2.1456881,1157.8,1155.3,0.5583532]
[1761564824907,2.1456881,1157.8,1155.4,0.5583532]
[1761564825206,2.1456881,1157.8,1155.5,1.276]
[1761564825607,3.0039634,1158.1,1155.5,1.276]
[1761564826008,2.1456881,1158.8,1155.5,1.276]
[1761564826709,2.1456881,1158.0,1155.5,1.276]
[1761564827104,0.15037886,1159.1,1155.5,1.276]
[1761564827105,2.1456881,1157.8,1155.5,1.276]
[1761564828207,2.1456881,1158.3,1155.5,1.276]
[1761564828705,2.1456881,1158.4,1155.5,1.276]
[1761564829313,2.1456881,1158.3,1155.5,1.276]
[1761564829712,2.1456881,1158.4,1155.5,1.276]
[1761564830209,2.1456881,1158.3,1155.5,1.276]
[1761564831712,2.1456881,1158.4,1155.5,1.276]
[1761564832008,2.1456881,1158.4,1155.6,0.55795315]
[1761564832312,2.1456881,1158.4,1155.5,1.276]
[1761564832510,2.1456881,1158.4,1155.6,0.5579742]
[1761564832712,2.1456881,1158.4,1155.5,1.276]
[1761564832912,2.1456881,1158.6,1155.6,0.55797373]
[1761564833110,2.1456881,1158.6,1155.5,1.276]
[1761564833310,2.1456881,1158.6,1155.6,0.55799317]
[1761564833515,2.1456881,1158.6,1155.5,1.276]
[1761564833709,2.1456881,1158.6,1155.6,0.55796651]
[1761564833910,2.1456881,1158.6,1155.5,1.276]
[1761564834113,2.1456881,1158.6,1155.6,0.55796651]
[1761564834313,2.1456881,1158.6,1155.5,1.276]
[1761564834509,2.1456881,1158.5,1155.6,0.55817525]
[1761564834809,2.1456881,1158.5,1155.5,1.276]
[1761564835013,2.1456881,1158.5,1155.6,0.55817505]
[1761564835210,2.1456881,1158.5,1155.5,1.276]
[1761564835409,2.1456881,1158.5,1155.6,0.55839632]
[1761564835614,2.1456881,1158.5,1155.5,1.276]
[1761564835910,2.1456881,1158.5,1155.6,0.55839648]
[1761564836111,2.1456881,1158.5,1155.5,1.276]
[1761564836312,2.1456881,1158.5,1155.6,0.55841304]
[1761564836610,2.1456881,1158.5,1155.5,1.276]
[1761564836810,2.1456881,1158.5,1155.6,0.55862069]
[1761564837011,2.1456881,1158.5,1155.5,1.276]
[1761564837211,2.1456881,1158.5,1155.6,0.55861957]
[1761564837412,2.1456881,1158.5,1155.5,1.276]
[1761564837611,2.1456881,1158.4,1155.5,1.276]
[1761564838012,2.1456881,1158.2,1155.5,1.276]
[1761564838316,2.1456881,1158.2,1155.6,0.55885027]
[1761564838617,2.1456881,1157.8,1155.5,1.276]
[1761564838912,2.1456881,1157.8,1155.6,0.55928534]
[1761564839116,2.1456881,1157.8,1155.5,1.276]
[1761564839412,2.1456881,1157.8,1155.6,0.55930409]
[1761564839614,2.1456881,1158.3,1155.7,0.55930409]
[1761564839813,2.1456881,1158.3,1155.8,0.55930409]
[1761564840011,2.1456881,1158.3,1155.5,1.276]
[1761564840217,2.1456881,1158.3,1155.6,0.55934177]
[1761564840410,2.1456881,1158.3,1155.5,1.276]
[1761564840411,2.1456881,1158.3,1155.7,0.55934177]
[1761564840616,2.1456881,1158.3,1155.8,0.55934177]
[1761564840818,2.1456881,1158.3,1155.9,0.55934177]
[1761564841017,2.1456881,1158.3,1155.5,1.91561372]
[1761564841217,2.1456881,1158.3,1155.6,0.55930415]
[1761564841413,2.1456881,1158.3,1155.7,0.55930415]
[1761564841617,2.1456881,1158.3,1155.8,0.55930415]
[1761564841812,2.1456881,1158.3,1155.9,0.55930415]
[1761564842014,2.1456881,1158.3,1155.5,1.91561372]
[1761564842218,2.1456881,1158.1,1155.6,0.55938873]
[1761564842513,2.1456881,1158.1,1155.7,0.55938873]
[1761564842717,2.1456881,1158.2,1155.8,0.55938873]
[1761564843015,2.1456881,1158.2,1155.9,0.55938873]
[1761564843213,2.1456881,1158.2,1156.0,0.55938873]
[1761564843413,2.1456881,1158.2,1155.6,0.63961372]
[1761564843616,2.1456881,1158.2,1155.7,0.559152]
[1761564843918,2.1456881,1158.2,1155.8,0.559152]
[1761564844116,2.1456881,1158.2,1155.9,0.559152]
[1761564844315,2.1456881,1158.3,1155.5,1.91561372]
[1761564844515,2.1456881,1158.3,1155.6,1.19865215]
[1761564844716,2.1456881,1158.2,1155.7,0.55903843]
[1761564844918,2.1456881,1158.2,1155.8,0.55903843]
[1761564845117,2.1456881,1158.2,1155.9,0.55903843]
[1761564845418,2.1456881,1158.2,1155.5,1.91561372]
[1761564845618,2.1456881,1158.2,1155.6,0.55896022]
[1761564845819,2.1456881,1158.2,1155.7,0.55896022]
[1761564846023,2.1456881,1158.2,1155.8,0.55896022]
[1761564846319,2.1456881,1158.2,1155.9,0.55896022]
[1761564846524,2.1456881,1158.2,1156.0,0.55880601]
[1761564846819,2.1456881,1158.5,1155.5,1.91561372]
[1761564847025,2.1456881,1158.5,1155.6,1.19837605]